bitfinex-derivatives/quotes_SOLF0:USTF0_20250731
["timestamp","ask_amount","ask_price","bid_price","bid_amount"]
[1753976558252,3.04,176.96,176.94,9.66841349]
[1753976558451,3.04,176.96,176.94,4.01691349]
[1753976558656,3.04,176.95,176.94,9.66871349]
[1753976558955,8.6907,176.98,176.94,9.66871349]
[1753976559151,3.04,176.97,176.95,5.6515]
[1753976559548,3.04,176.97,176.94,4.01691349]
[1753976559855,3.04,176.96,176.95,5.6513]
[1753976561060,3.04,177.0,176.98,5.6504]
[1753976561261,3.04,177.0,176.94,4.01691349]
[1753976561451,3.04,177.0,176.96,4.01691349]
[1753976561656,3.04,177.0,176.97,5.6506]
[1753976561856,3.04,177.0,176.96,4.01691349]
[1753976562257,3.04,177.0,176.98,5.6503]
[1753976562457,3.04,177.0,176.96,4.01691349]
[1753976562861,3.04,177.0,176.98,5.6504]
[1753976563161,3.04,177.0,176.96,4.01691349]
[1753976563992,3.04,177.0,176.98,5.6502]
[1753976564359,3.04,177.0,176.89,11.3063]
[1753976564666,3.04,176.98,176.91,4.01691349]
[1753976564964,3.04,176.96,176.89,4.01691349]
[1753976565166,3.04,176.96,176.91,4.01691349]
[1753976565768,3.04,176.96,176.95,5.6515]
[1753976565965,3.04,176.96,176.95,9.66841349]
[1753976568262,4.01691349,177.04,176.98,5.6504]
[1753976568467,4.01691349,177.04,176.95,4.01691349]
[1753976568764,3.04,177.01,176.97,5.6507]
[1753976568967,3.04,177.01,176.9,6.24824618]
[1753976569156,8.6898,177.01,176.93,4.01691349]
[1753976569361,3.04,176.99,176.95,5.6515]
[1753976569568,3.04,176.99,176.91,4.01691349]
[1753976569768,4.01691349,176.98,176.95,5.6514]
[1753976570060,3.04,176.97,176.91,4.01691349]
[1753976571366,3.04,176.97,176.96,5.6512]
[1753976571566,3.04,176.97,176.91,4.01691349]
[1753976571958,3.04,176.97,176.96,5.6512]
[1753976573866,3.04,176.97,176.91,4.01691349]
[1753976574259,3.04,176.97,176.96,5.6512]
[1753976574466,3.04,176.97,176.91,10.26515967]
[1753976574660,3.04,176.97,176.91,4.01691349]
[1753976575069,3.04,176.97,176.94,5.6516]
[1753976575263,3.04,176.97,176.91,4.01691349]
[1753976577371,3.04,176.97,176.95,5.6513]
[1753976577664,3.04,176.97,176.92,6.24824618]
[1753976577861,3.04,176.97,176.93,6.24824618]
[1753976578061,3.04,176.97,176.94,5.6518]
[1753976578869,3.04,176.97,176.95,5.6515]
[1753976579370,3.04,176.97,176.94,5.6517]
[1753976579872,3.04,176.97,176.95,5.6514]
[1753976580073,3.04,176.97,176.93,6.24824618]
[1753976580574,3.15,176.99,176.94,10.26515967]
[1753976580761,3.15,177.03,176.96,10.26515967]
[1753976581071,3.15,177.02,177.0,4.01691349]
[1753976581266,4.01691349,177.1,177.0,4.01691349]
[1753976581460,3.15,177.07,177.0,4.01691349]
[1753976582271,3.15,177.06,176.99,6.24824618]
[1753976582463,3.15,177.06,176.99,4.01691349]
[1753976582669,5.6488,177.04,176.99,5.65]
[1753976582869,3.15,177.03,176.99,5.65]
[1753976583469,3.15,177.01,176.96,10.26515967]
[1753976584066,3.15,177.01,176.96,4.01691349]
[1753976584365,3.15,177.01,176.93,9.40251863]
[1753976584366,3.15,177.01,176.94,10.26515967]
[1753976584568,5.6501,177.0,176.95,5.6514]
[1753976584768,3.15,177.06,176.96,4.01691349]
[1753976585064,3.15,177.06,176.98,4.01691349]
[1753976585277,3.15,177.03,176.99,5.6501]
[1753976585473,3.15,177.03,176.98,4.01691349]
[1753976585971,3.15,177.03,177.0,5.6497]
[1753976586170,3.15,177.03,177.0,9.66661349]
[1753976586469,5.6484,177.05,177.0,9.66661349]
[1753976586665,3.15,177.01,177.0,9.66661349]
[1753976587670,3.15,177.01,177.0,5.6497]
[1753976587875,3.15,177.01,177.0,9.66661349]
[1753976589876,3.15,177.01,177.0,4.01691349]
[1753976590676,3.15,177.01,177.0,9.66681349]
[1753976591773,3.15,177.01,177.0,4.01691349]
[1753976592173,3.15,177.06,177.0,4.01691349]
[1753976592374,3.15,177.06,177.03,4.01691349]
[1753976593673,5.6472,177.09,177.03,4.01691349]
[1753976593872,3.15,177.08,177.04,5.6486]
[1753976594074,3.15,177.08,177.05,4.01691349]
[1753976594978,3.15,177.07,177.03,9.66571349]
[1753976596870,8.7977,177.07,177.03,9.66571349]
[1753976597074,383.59691349,177.11,177.03,4.01691349]
[1753976597276,4.01691349,177.15,177.07,4.01691349]
[1753976597582,3.15,177.11,177.09,9.66381349]
[1753976598075,5.6455,177.14,177.09,9.66381349]
[1753976598379,3.15,177.12,177.11,4.01691349]
[1753976598877,379.72,177.21,177.11,4.01691349]
[1753976598878,3.15,177.14,177.12,5.6459]
[1753976599172,3.15,177.14,177.13,4.01691349]
[1753976600480,3.15,177.14,177.1,4.01691349]
[1753976600779,5.6456,177.14,177.1,4.01691349]
[1753976600979,3.15,177.13,177.1,4.01691349]
[1753976601381,5.6456,177.14,177.1,4.01691349]
[1753976601577,3.15,177.12,177.1,4.01691349]
[1753976601778,5.6456,177.14,177.1,4.01691349]
[1753976601982,3.15,177.11,177.1,4.01691349]
[1753976603490,3.15,177.11,177.1,9.66361349]
[1753976603978,3.15,177.11,177.1,4.01691349]
[1753976604283,5.6451,177.16,177.1,4.01691349]
[1753976604486,4.01691349,177.2,177.12,9.66301349]
[1753976604685,4.01691349,177.2,177.04,6.24824618]
[1753976604686,3.15,177.2,177.16,4.01691349]
[1753976604881,3.15,177.19,177.16,4.01691349]
[1753976606379,3.15,177.23,177.16,4.01691349]
[1753976606575,8.7927,177.23,177.18,4.01691349]
[1753976606781,3.15,177.22,177.18,4.01691349]
[1753976606980,104.24,177.27,177.18,4.01691349]
[1753976607181,3.15,177.21,177.18,4.01691349]
[1753976607377,3.15,177.26,177.12,4.01691349]
[1753976607583,3.15,177.26,177.19,4.01691349]
[1753976608186,104.24,177.27,177.19,9.66051349]
[1753976608187,5.6425,177.24,177.19,9.66051349]
[1753976608387,3.28,177.23,177.19,9.66051349]
[1753976608585,3.28,177.22,177.19,4.01691349]
[1753976609187,3.28,177.22,177.2,5.6435]
[1753976609382,3.28,177.22,177.19,4.01691349]
[1753976609884,3.28,177.22,177.2,5.6435]
[1753976610081,3.28,177.22,177.19,4.01691349]
[1753976610886,3.28,177.22,177.12,4.01691349]
[1753976610887,3.28,177.22,177.21,4.01691349]
[1753976611086,3.28,177.22,177.21,9.66001349]
[1753976611886,3.28,177.24,177.22,5.6428]
[1753976612089,3.28,177.23,177.22,5.6428]
[1753976612387,3.28,177.25,177.21,9.66001349]
[1753976612784,8.9222,177.25,177.21,4.01691349]
[1753976612985,3.28,177.24,177.21,4.01691349]
[1753976613190,104.24,177.29,177.21,4.01691349]
[1753976613389,3.28,177.26,177.21,4.01691349]
[1753976613586,3.28,177.28,177.23,4.01691349]
[1753976614291,3.28,177.28,177.22,5.6428]
[1753976615392,3.28,177.25,177.22,5.6428]
[1753976615791,4.01691349,177.26,177.19,4.01691349]
[1753976615991,3.28,177.25,177.19,4.01691349]
[1753976616895,3.28,177.23,177.2,5.6434]
[1753976617493,3.28,177.23,177.17,4.01691349]
[1753976618393,3.28,177.22,177.15,4.01691349]
[1753976619290,5.6439,177.19,177.15,4.01691349]
[1753976619489,3.28,177.27,177.15,4.01691349]
[1753976619795,5.6432,177.21,177.18,5.644]
[1753976619996,3.28,177.2,177.17,4.01691349]
[1753976620699,3.28,177.2,177.17,9.66121349]
[1753976620901,3.28,177.19,177.15,4.01691349]
[1753976621696,5.6439,177.19,177.15,5.6449]
[1753976621996,104.24,177.29,177.15,5.6449]
[1753976621997,3.28,177.18,177.15,5.6449]
[1753976622193,8.9242,177.18,177.14,5.6452]
[1753976622394,3.28,177.17,177.13,4.01691349]
[1753976622796,3.28,177.17,177.16,5.6448]
[1753976624102,3.28,177.17,177.15,5.645]
[1753976624499,5.6441,177.19,177.13,4.01691349]
[1753976624500,3.28,177.18,177.13,4.01691349]
[1753976624700,3.28,177.18,177.17,5.6445]
[1753976625095,3.28,177.22,177.2,5.6435]
[1753976627500,3.28,177.22,177.19,5.6438]
[1753976627808,4.01691349,177.23,177.16,4.01691349]
[1753976628004,7.29691349,177.21,177.13,4.01691349]
[1753976628205,3.28,177.2,177.13,4.01691349]
[1753976628609,3.28,177.2,177.17,5.6443]
[1753976628808,8.9238,177.2,177.13,4.01691349]
[1753976629014,3.28,177.19,177.13,4.01691349]
[1753976629212,3.28,177.19,177.15,5.6449]
[1753976629411,3.28,177.18,177.15,5.6449]
[1753976630512,4.01691349,177.21,177.15,5.6449]
[1753976630712,3.28,177.2,177.16,5.6448]
[1753976631808,4.01691349,177.23,177.17,5.6444]
[1753976632007,3.28,177.22,177.17,5.6444]
[1753976632413,3.28,177.2,177.17,5.6444]
[1753976632710,3.28,177.19,177.18,5.6441]
[1753976632913,3.28,177.24,177.17,4.01691349]
[1753976633611,3.28,177.23,177.17,4.01691349]
[1753976634012,3.28,177.23,177.19,4.01691349]
[1753976634415,3.28,177.23,177.2,5.6435]
[1753976634913,3.28,177.23,177.21,5.6431]
[1753976635716,3.28,177.23,177.2,5.6434]
[1753976636409,3.28,177.23,177.19,4.01691349]
[1753976637111,3.28,177.23,177.2,5.6432]
[1753976637316,3.28,177.23,177.19,4.01691349]
[1753976637612,104.24,177.29,177.21,4.01691349]
[1753976637819,3.28,177.26,177.22,9.65961349]
[1753976638214,11.2782,177.34,177.14,44.65861328]
[1753976638215,5.641,177.28,177.24,4.01691349]
[1753976638413,3.01,177.27,177.24,4.01691349]
[1753976638816,3.01,177.27,177.22,5.6427]
[1753976639217,5.6416,177.26,177.22,5.6427]
[1753976639417,3.01,177.25,177.2,4.01691349]
[1753976639621,4.01691349,177.28,177.23,5.6425]
[1753976639622,3.01,177.24,177.23,5.6425]
[1753976639819,3.01,177.24,177.2,4.01691349]
[1753976640117,3.01,177.24,177.2,5.6433]
[1753976640320,3.01,177.24,177.18,4.01691349]
[1753976640517,3.01,177.22,177.19,5.6436]
[1753976640724,3.01,177.22,177.18,4.01691349]
[1753976640921,3.01,177.21,177.18,4.01691349]
[1753976641123,3.01,177.25,177.2,4.01691349]
[1753976641319,3.01,177.25,177.18,4.01691349]
[1753976641520,3.01,177.21,177.18,4.01691349]
[1753976641717,4.01691349,177.26,177.18,4.01691349]
[1753976641718,3.01,177.25,177.18,4.01691349]
[1753976641923,3.01,177.25,177.2,4.01691349]
[1753976642120,3.01,177.25,177.21,5.6429]
[1753976642324,4.01691349,177.29,177.22,4.01691349]
[1753976642523,380.54219074,177.31,177.22,4.01691349]
[1753976642524,3.01,177.25,177.22,4.01691349]
[1753976642824,3.01,177.24,177.22,4.01691349]
[1753976643127,3.01,177.24,177.23,5.6424]
[1753976643828,3.01,177.26,177.22,4.01691349]
[1753976644021,3.01,177.26,177.24,4.01691349]
[1753976644326,3.01,177.25,177.24,9.65901349]
[1753976644926,3.01,177.27,177.26,5.6415]
[1753976645127,379.56,177.31,177.24,4.01691349]
[1753976645329,3.01,177.26,177.24,4.01691349]
[1753976645531,3.01,177.26,177.25,5.6418]
[1753976645718,108.13691349,177.32,177.24,4.01691349]
[1753976646121,3.01,177.27,177.24,4.01691349]
[1753976646418,3.01,177.26,177.25,5.6419]
[1753976650633,3.01,177.26,177.22,4.01691349]
[1753976651227,3.01,177.28,177.24,9.65891349]
[1753976651635,3.01,177.28,177.24,4.01691349]
[1753976651934,3.01,177.27,177.22,4.01691349]
[1753976652832,3.01,177.27,177.23,4.01691349]
[1753976653234,3.01,177.26,177.25,4.01691349]
[1753976653435,8.6507,177.29,177.25,4.01691349]
[1753976653733,3.01,177.28,177.26,5.6415]
[1753976653933,3.01,177.28,177.25,4.01691349]
[1753976654134,3.01,177.28,177.25,9.65851349]
[1753976655037,3.01,177.27,177.24,5.6422]
[1753976655236,3.01,177.27,177.21,4.01691349]
[1753976655732,3.01,177.26,177.23,5.6423]
[1753976656127,3.01,177.26,177.24,5.6421]
[1753976656335,105.08199673,177.35,177.23,4.01691349]
[1753976656336,4.01691349,177.31,177.23,4.01691349]
[1753976656641,4.01691349,177.31,177.25,5.6418]
[1753976656834,3.01,177.26,177.25,5.6418]
[1753976659234,3.01,177.26,177.18,6.24824618]
[1753976659435,3.01,177.24,177.17,10.26515967]
[1753976659640,4.01691349,177.23,177.15,4.01691349]
[1753976659935,3.01,177.22,177.15,4.01691349]
[1753976660734,9.65911349,177.25,177.17,4.01691349]
[1753976661038,9.65911349,177.25,177.13,6.24824618]
[1753976661039,3.01,177.21,177.19,4.01691349]
[1753976661234,3.01,177.26,177.21,5.6431]
[1753976661629,4.01691349,177.27,177.21,5.6431]
[1753976661630,5.6421,177.25,177.21,5.6431]
[1753976661834,3.01,177.24,177.21,5.6431]
[1753976663244,3.01,177.25,177.22,5.6429]
[1753976663743,4.01691349,177.29,177.21,4.01691349]
[1753976663945,3.01,177.28,177.19,4.01691349]
[1753976664442,3.01,177.28,177.21,5.643]
[1753976664640,4.01691349,177.25,177.17,4.01691349]
[1753976664837,5.6431,177.22,177.18,5.6439]
[1753976665039,3.01,177.21,177.17,4.01691349]
[1753976666038,3.01,177.22,177.17,4.01691349]
[1753976666240,3.01,177.21,177.19,4.01691349]
[1753976666444,3.01,177.2,177.19,9.66071349]
[1753976666641,3.01,177.2,177.19,5.6438]
[1753976666844,4.01691349,177.28,177.18,4.01691349]
[1753976667145,3.01,177.27,177.21,5.643]
[1753976667347,3.01,177.24,177.2,4.01691349]
[1753976667548,4.01691349,177.28,177.23,5.6426]
[1753976667759,3.01,177.27,177.2,4.01691349]
[1753976667945,3.01,177.25,177.2,4.01691349]
[1753976668247,3.01,177.25,177.23,5.6425]
[1753976668642,3.01,177.25,177.2,4.01691349]
[1753976668957,3.01,177.25,177.23,5.6425]
[1753976669258,3.18,177.27,177.22,4.01691349]
[1753976669757,3.18,177.27,177.23,5.6424]
[1753976669955,3.18,177.27,177.12,4.01691349]
[1753976669956,3.18,177.27,177.19,4.01691349]
[1753976670157,3.18,177.27,177.21,4.01691349]
[1753976670756,3.18,177.27,177.25,5.6418]
[1753976670960,3.18,177.3,177.25,4.01691349]
[1753976671455,3.18,177.28,177.26,5.6414]
[1753976672661,8.8212,177.28,177.25,5.6419]
[1753976672852,3.18,177.27,177.25,5.6419]
[1753976673057,3.18,177.27,177.23,4.01691349]
[1753976673362,3.18,177.26,177.24,5.6421]
[1753976673662,3.18,177.26,177.24,5.642]
[1753976674264,3.18,177.26,177.25,5.6419]
[1753976675557,3.18,177.26,177.24,5.6421]
[1753976677167,3.18,177.26,177.23,9.65951349]
[1753976677569,3.18,177.26,177.21,4.01691349]
[1753976677764,3.18,177.26,177.23,5.6423]
[1753976677969,3.18,177.26,177.21,4.01691349]
[1753976679068,8.8216,177.26,177.21,4.01691349]
[1753976679269,3.18,177.25,177.21,4.01691349]
[1753976679664,3.18,177.24,177.21,4.01691349]
[1753976679864,3.18,177.24,177.19,4.01691349]
[1753976680064,3.18,177.23,177.18,4.01691349]
[1753976680265,3.18,177.23,177.2,5.6433]
[1753976681270,3.18,177.24,177.21,5.6432]
[1753976685073,8.8223,177.24,177.21,5.6432]
[1753976685374,3.18,177.23,177.21,5.6432]
[1753976686470,3.18,177.23,177.22,5.6429]
[1753976689280,3.18,177.23,177.21,5.6431]
[1753976689480,3.18,177.22,177.21,5.6431]
[1753976689674,4.01691349,177.25,177.17,4.01691349]
[1753976689878,3.18,177.21,177.16,5.6446]
[1753976690178,3.18,177.21,177.13,4.01691349]
[1753976690379,8.8234,177.21,177.15,5.6449]
[1753976690580,3.18,177.2,177.15,5.6449]
[1753976692876,5.6436,177.2,177.15,5.6449]
[1753976693082,3.18,177.19,177.15,5.6449]
[1753976693576,3.18,177.18,177.14,5.6454]
[1753976693784,3.18,177.18,177.12,4.01691349]
[1753976694879,3.18,177.18,177.13,5.6457]
[1753976695271,3.18,177.18,177.12,4.01691349]
[1753976695677,3.18,177.18,177.14,5.6452]
[1753976696181,3.18,177.18,177.15,5.6451]
[1753976697078,3.18,177.18,177.14,9.66231349]
[1753976697281,3.18,177.18,177.13,4.01691349]
[1753976698183,3.18,177.18,177.13,9.66261349]
[1753976698378,3.18,177.18,177.13,4.01691349]
[1753976698981,3.13,177.2,177.15,4.01691349]
[1753976699180,3.13,177.25,177.19,5.6438]
[1753976699376,3.13,177.23,177.17,4.01691349]
[1753976699986,5.6428,177.23,177.18,5.6441]
[1753976700187,4.01691349,177.22,177.14,4.01691349]
[1753976700388,3.13,177.19,177.12,4.01691349]
[1753976700579,5.6442,177.18,177.13,5.6456]
[1753976700777,3.13,177.17,177.12,4.01691349]
[1753976701686,4.01691349,177.23,177.14,4.01691349]
[1753976701885,4.01691349,177.21,177.13,4.01691349]
[1753976702081,3.13,177.19,177.13,4.01691349]
[1753976702791,3.13,177.18,177.14,5.6452]
[1753976703991,3.13,177.18,177.13,4.01691349]
[1753976705291,3.13,177.17,177.13,4.01691349]
[1753976705489,3.13,177.17,177.08,104.06]
[1753976705490,3.13,177.17,177.09,4.01691349]
[1753976705689,3.13,177.16,177.12,5.6461]
[1753976705892,3.13,177.25,177.13,4.01691349]
[1753976706094,3.13,177.21,177.13,4.01691349]
[1753976706394,3.13,177.18,177.13,4.01691349]
[1753976706890,3.13,177.17,177.11,4.01691349]
[1753976707094,3.13,177.17,177.13,4.01691349]
[1753976707491,3.13,177.17,177.13,9.66241349]
[1753976707994,8.7747,177.17,177.11,9.66311349]
[1753976708197,3.13,177.16,177.11,9.66311349]
[1753976708900,3.13,177.17,177.13,5.6458]
[1753976709087,3.13,177.16,177.13,4.01691349]
[1753976709287,5.647,177.43,177.08,104.06]
[1753976709288,4.74663584,177.26,177.15,4.01691349]
[1753976709594,3.13,177.18,177.17,4.01691349]
[1753976709993,3.13,177.18,177.17,9.66141349]
[1753976711894,3.13,177.18,177.17,4.01691349]
[1753976712092,3.13,177.18,177.08,113.46251863]
[1753976712298,3.13,177.18,177.15,4.01691349]
[1753976713002,3.13,177.18,177.13,4.01691349]
[1753976714497,390.6618,177.29,177.17,4.01691349]
[1753976714498,3.13,177.19,177.17,4.01691349]
[1753976715004,3.13,177.21,177.14,4.01691349]
[1753976715501,3.13,177.15,177.09,4.01691349]
[1753976715895,5.6456,177.14,177.09,5.647]
[1753976716095,3.13,177.13,177.07,108.07691349]
[1753976716396,3.13,177.13,177.07,4.01691349]
[1753976716601,3.13,177.13,177.09,5.6469]
[1753976717200,7.14691349,177.15,177.1,5.6467]
[1753976717400,3.13,177.14,177.1,5.6467]
[1753976717611,3.13,177.16,177.13,5.6457]
[1753976717807,3.13,177.17,177.15,4.01691349]
[1753976718305,3.13,177.17,177.16,5.6448]
[1753976720507,3.13,177.21,177.15,4.01691349]
[1753976720704,3.13,177.23,177.19,4.01691349]
[1753976721406,3.13,177.23,177.2,5.6436]
[1753976721597,3.13,177.23,177.19,4.01691349]
[1753976721803,3.13,177.23,177.2,5.6435]
[1753976721999,3.13,177.23,177.19,4.01691349]
[1753976722199,4.01691349,177.27,177.19,4.01691349]
[1753976722404,3.13,177.21,177.19,4.01691349]
[1753976722600,4.01691349,177.27,177.19,4.01691349]
[1753976722903,3.13,177.24,177.17,4.01691349]
[1753976723200,3.13,177.23,177.19,5.6439]
[1753976723602,3.13,177.23,177.1,104.06]
[1753976723603,3.13,177.23,177.15,4.01691349]
[1753976723804,3.13,177.21,177.17,5.6445]
[1753976724106,3.13,177.21,177.15,4.01691349]
[1753976724503,3.13,177.21,177.17,4.01691349]
[1753976724805,8.7733,177.21,177.17,4.01691349]
[1753976725000,3.13,177.2,177.17,4.01691349]
[1753976726004,5.6436,177.2,177.17,4.01691349]
[1753976726207,3.13,177.19,177.17,4.01691349]
[1753976726607,3.13,177.19,177.1,9.40251863]
[1753976726900,3.13,177.18,177.1,4.01691349]
[1753976727106,5.6446,177.17,177.12,5.6459]
[1753976727302,3.13,177.16,177.12,5.6459]
[1753976727496,3.13,177.16,177.1,4.01691349]
[1753976727699,5.6451,177.16,177.11,5.6463]
[1753976727908,3.13,177.15,177.11,5.6463]
[1753976728100,3.13,177.15,177.08,4.01691349]
[1753976728300,3.13,177.13,177.09,5.647]
[1753976728510,3.13,177.13,177.08,4.01691349]
[1753976728808,3.13,177.12,177.1,5.6466]
[1753976729912,3.13,177.11,177.1,5.6466]
[1753976730611,3.13,177.16,177.09,5.647]
[1753976731199,3.13,177.14,177.09,5.647]
[1753976731398,3.13,177.14,177.1,5.6467]
[1753976732710,3.13,177.14,177.09,5.647]
[1753976733007,3.13,177.14,177.07,6.54805938]
[1753976733209,3.13,177.14,177.07,15.95057801]
[1753976733411,3.13,177.13,177.07,6.54805938]
[1753976733610,6.54805938,177.19,177.09,6.54805938]
[1753976733813,3.13,177.15,177.11,6.54805938]
[1753976734003,3.13,177.15,177.13,5.6457]
[1753976734204,6.54805938,177.21,177.08,6.54805938]
[1753976734404,6.54805938,177.21,177.02,63.5640769]
[1753976734405,5.646,177.13,177.03,15.95057801]
[1753976734604,3.13,177.12,177.03,15.95057801]
[1753976734805,3.13,177.12,177.03,6.54805938]
[1753976735008,3.13,177.09,177.02,52.2655769]
[1753976735804,3.13,177.09,177.04,5.6487]
[1753976736000,3.13,177.09,177.02,52.2655769]
[1753976737110,3.13,177.09,177.01,379.36]
[1753976737309,3.13,177.09,177.03,6.54805938]
[1753976740406,6.54805938,177.17,177.07,6.54805938]
[1753976740611,3.13,177.16,177.09,6.54805938]
[1753976740916,3.13,177.17,177.13,6.54805938]
[1753976741119,3.13,177.16,177.13,6.54805938]
[1753976741415,3.13,177.22,177.13,6.54805938]
[1753976741717,3.13,177.18,177.13,6.54805938]
[1753976742213,3.13,177.17,177.14,5.6454]
[1753976742412,3.13,177.17,177.12,6.54805938]
[1753976742612,3.13,177.17,177.14,5.6454]
[1753976744109,3.13,177.17,177.15,5.6452]
[1753976744307,3.13,177.22,177.13,6.54805938]
[1753976744512,3.13,177.19,177.13,6.54805938]
[1753976744711,6.54805938,177.25,177.15,6.54805938]
[1753976744909,5.6433,177.21,177.15,6.54805938]
[1753976745107,3.13,177.17,177.15,6.54805938]
[1753976746109,3.13,177.17,177.16,5.6449]
[1753976747714,3.13,177.17,177.15,5.6452]
[1753976749007,3.13,177.17,177.11,6.54805938]
[1753976749210,3.13,177.17,177.05,104.08]
[1753976749211,3.13,177.17,177.08,6.54805938]
[1753976749712,3.13,177.15,177.08,6.54805938]
[1753976750712,4.74663584,177.24,177.1,6.54805938]
[1753976750915,3.13,177.2,177.1,6.54805938]
[1753976751611,6.54805938,177.21,177.1,6.54805938]
[1753976751812,3.13,177.17,177.1,6.54805938]
[1753976752318,3.13,177.17,177.13,5.6456]
[1753976752515,3.13,177.17,177.1,6.54805938]
[1753976752920,3.13,177.17,177.12,4.01629387]
[1753976753519,3.13,177.17,177.15,5.6452]
[1753976754022,3.13,177.19,177.12,4.01629387]
[1753976754208,3.13,177.21,177.16,4.01629387]
[1753976754614,3.13,177.21,177.18,5.6442]
[1753976755313,3.13,177.21,177.19,5.644]
[1753976755622,3.13,177.2,177.19,5.644]
[1753976757621,3.13,177.24,177.18,4.01629387]
[1753976757820,3.13,177.24,177.21,4.01629387]
[1753976758528,3.34,177.26,177.21,4.01629387]
[1753976759019,3.34,177.25,177.23,4.01629387]
[1753976759217,3.34,177.24,177.23,4.01629387]
[1753976759412,3.34,177.24,177.23,9.65899387]
[1753976760726,3.34,177.24,177.2,4.01629387]
[1753976760926,3.34,177.24,177.19,6.53926987]
[1753976761223,3.34,177.24,177.22,5.643]
[1753976761819,3.34,177.23,177.15,32.98331681]
[1753976762023,3.34,177.22,177.18,6.53926987]
[1753976762426,110.59926987,177.29,177.21,5.6431]
[1753976762623,3.34,177.25,177.21,5.6431]
[1753976762821,3.34,177.25,177.22,5.643]
[1753976763622,8.9822,177.25,177.21,5.6431]
[1753976763924,3.34,177.24,177.21,5.6431]
[1753976764127,3.34,177.24,177.18,6.53926987]
[1753976764424,3.34,177.23,177.18,6.53926987]
[1753976764622,3.34,177.23,177.2,6.53926987]
[1753976765128,3.34,177.24,177.2,6.53926987]
[1753976765424,3.34,177.3,177.22,6.53926987]
[1753976766024,5.6411,177.29,177.25,5.6421]
[1753976766225,3.34,177.28,177.22,6.53926987]
[1753976766426,8.9813,177.28,177.24,5.6422]
[1753976766725,3.34,177.26,177.22,6.53926987]
[1753976766919,6.53926987,177.33,177.22,6.53926987]
[1753976766920,5.6408,177.3,177.26,5.6417]
[1753976767226,3.34,177.29,177.26,5.6417]
[1753976767425,3.34,177.32,177.24,6.53926987]
[1753976767727,3.34,177.3,177.24,6.53926987]
[1753976768120,5.6405,177.3,177.24,6.53926987]
[1753976768329,3.34,177.29,177.24,6.53926987]
[1753976768529,3.34,177.29,177.16,11.2897]
[1753976768716,3.34,177.29,177.22,6.53926987]
[1753976768920,3.34,177.29,177.21,6.53926987]
[1753976769522,3.34,177.28,177.24,5.6422]
[1753976770325,5.6414,177.28,177.24,5.6422]
[1753976770627,3.34,177.26,177.22,5.6428]
[1753976770834,3.34,177.26,177.18,6.53926987]
[1753976771021,3.34,177.26,177.15,32.98331681]
[1753976771022,6.53926987,177.31,177.22,6.53926987]
[1753976771220,3.34,177.25,177.22,6.53926987]
[1753976771416,3.34,177.25,177.24,5.6424]
[1753976771627,3.34,177.29,177.22,6.53926987]
[1753976772323,5.6412,177.28,177.24,5.6422]
[1753976772528,3.34,177.27,177.24,5.6422]
[1753976772728,3.34,177.27,177.15,44.27371681]
[1753976772729,3.34,177.27,177.2,6.53926987]
[1753976772935,6.53926987,177.31,177.2,6.53926987]
[1753976773228,3.34,177.3,177.2,6.53926987]
[1753976773722,3.34,177.3,177.22,6.53926987]
[1753976773930,3.34,177.3,177.24,6.53926987]